{"text_format":"1","workbook":"xlsx","n_sheets":8,"sheets":["Notes","Summary","PTS Region (Geography)","SaT Region (Geography)","PTS Org","SaT Org","Mode Org","BS"],"not_rendered":{"charts":0,"images":0,"macros":1,"external_links":0,"defined_names":17,"comments":0,"pivot_tables":0},"unopened":[],"bounds":{"document_bytes":16777216,"sheet_cells":100000,"rows_first":2000,"rows_last":500,"rows_between":2000,"halvings":0,"cell_chars":16384,"cell_head_chars":4096},"cells_cut":0,"cells_raw":0,"read":"whole","date_system":"1900"}

{"sheet":"Notes","index":0,"n_rows":2,"n_cols":8,"rows_kept":2,"cut":false,"hidden":false,"merged":[]}
[]
["Ambulance Friends and Family Test (FFT) data - March 2016",null,null,null,null,null,null," Show data for:"]

{"sheet":"Summary","index":1,"n_rows":14,"n_cols":11,"rows_kept":14,"cut":false,"hidden":false,"merged":[[11,1,13,1],[5,1,6,2],[5,5,5,6],[5,7,5,8],[5,9,5,10],[7,1,7,2],[8,1,10,1]]}
[]
[]
[]
[]
[]
[null,"FFT",null,"Number of organisations submitting","Total responses to date","Responses",null,"Score (% recommend)",null,"Score (% not recommend)"]
[null,null,null,"2016-03-01","2016-03-01","2016-03-01","2016-02-25","2016-03-01","2016-02-25","2016-03-01","2016-02-25"]
[null,"Ambulance Total",null,18,38272,4656,4108,0.91194158075601373,0.91382667964946451,3.2001718213058417E-2,3.6270691333982474E-2]
[null,"Patient Transport Services","Total",18,34897,4322,3937,0.91068949560388712,0.91262382524765051,3.1929662193428965E-2,3.6068072136144269E-2]
[null,null,"NHS",15,22219,1843,1697,0.91915355398806298,0.92928697701826757,2.7129679869777535E-2,2.6517383618149676E-2]
[null,null,"IS",3,12678,2479,2240,0.90439693424768053,0.9,3.5498184751916094E-2,4.3303571428571427E-2]
[null,"See and Treat","Total",11,3375,334,171,0.92814371257485029,0.94152046783625731,3.2934131736526949E-2,4.0935672514619881E-2]
[null,null,"NHS",11,3375,334,171,0.92814371257485029,0.94152046783625731,3.2934131736526949E-2,4.0935672514619881E-2]
[null,null,"IS",0,0,0,0,"NA","NA","NA","NA"]

{"sheet":"PTS Region (Geography)","index":2,"n_rows":24,"n_cols":12,"rows_kept":24,"cut":false,"hidden":false,"merged":[[7,5,8,5],[7,6,7,11],[4,1,5,1],[4,4,5,4],[7,0,8,0],[7,1,8,1],[7,2,8,2],[7,3,8,3],[7,4,8,4]]}
[]
[]
[]
[]
[null,null,null,null,null,null,"  "]
[]
[]
["Region (Geo) Code","Region (Geography) Name","Total Responses","Total Eligible","Percentage Recommended","Percentage Not  Recommended","Breakdown of Responses"]
[null,null,null,null,null,null,"Extremely Likely","Likely","Neither","Unlikely","Extremely Unlikely","Don't Know"]
[null,"England (including Independent Sector Providers)",4322,683730,0.91068949560388712,3.1929662193428965E-2,2816,1120,214,68,70,34]
[null,"England (excluding Independent Sector Providers)",1843,470837,0.91915355398806298,2.7129679869777535E-2,1275,419,77,22,28,22]
[null,"Selection (excluding suppressed data)",{"$f":"IFERROR(SUBTOTAL(9,C13:C40),\"-\")","v":4322},{"$f":"IFERROR(SUBTOTAL(9,D13:D40),\"-\")","v":683730},{"$f":"IFERROR((G12+H12)/SUM(G12:L12),\"-\")","v":0.91094619666048238},{"$f":"IFERROR((J12+K12)/SUM(G12:L12),\"-\")","v":3.1771799628942485E-2},{"$f":"IFERROR(SUBTOTAL(9,G13:G40),\"-\")","v":2809},1119,214,67,70,33]
["Q70","NHS England Wessex",8,566,0.875,0,6,1,0,0,0,1]
["Q71","NHS England London",572,64670,0.8898601398601399,3.1468531468531472E-2,268,241,41,6,12,4]
["Q72","NHS England Yorkshire & Humber",6,85575,0.83333333333333337,0.16666666666666666,"*","*","*","*","*","*"]
["Q73","NHS England Lancashire & Greater Manchester",604,81428,0.96357615894039739,1.1589403973509934E-2,527,55,10,2,5,5]
["Q74","NHS England Cumbria & North East",286,54073,0.8951048951048951,3.8461538461538464E-2,206,50,13,7,4,6]
["Q76","NHS England North Midlands",7,6710,1,0,7,0,0,0,0,0]
["Q77","NHS England West Midlands",34,47290,0.8529411764705882,5.8823529411764705E-2,21,8,1,1,1,2]
["Q79","NHS England East",228,42282,0.94736842105263153,1.3157894736842105E-2,179,37,7,3,0,2]
["Q80","NHS England South West",8,9123,0.875,0.125,6,1,0,0,1,0]
["Q81","NHS England South East",4,35802,"*","*","*","*","*","*","*","*"]
["Q82","NHS England South Central",86,43318,0.84883720930232553,8.1395348837209308E-2,48,25,5,2,5,1]
["IS1","Independent Sector Providers",2479,212893,0.90439693424768053,3.5498184751916094E-2,1541,701,137,46,42,12]

{"sheet":"SaT Region (Geography)","index":3,"n_rows":23,"n_cols":12,"rows_kept":23,"cut":false,"hidden":false,"merged":[[7,6,7,11],[7,0,8,0],[7,1,8,1],[7,2,8,2],[7,3,8,3],[7,4,8,4],[7,5,8,5]]}
[]
[]
[]
[]
[]
[]
[]
["Region (Geo) Code","Region (Geography) Name","Total Responses","Total Eligible","Percentage Recommended","Percentage Not  Recommended","Breakdown of Responses"]
[null,null,null,null,null,null,"Extremely Likely","Likely","Neither","Unlikely","Extremely Unlikely","Don't Know"]
[null,"England (including Independent Sector Providers)",334,212713,0.92814371257485029,3.2934131736526949E-2,281,29,1,6,5,12]
[null,"England (excluding Independent Sector Providers)",334,212713,0.92814371257485029,3.2934131736526949E-2,281,29,1,6,5,12]
[null,"Selection (excluding suppressed data)",{"$f":"IFERROR(SUBTOTAL(9,C13:C40),\"-\")","v":334},{"$f":"IFERROR(SUBTOTAL(9,D13:D40),\"-\")","v":212713},{"$f":"IFERROR((G12+H12)/SUM(G12:L12),\"-\")","v":0.92682926829268297},{"$f":"IFERROR((J12+K12)/SUM(G12:L12),\"-\")","v":3.3536585365853661E-2},{"$f":"IFERROR(SUBTOTAL(9,G13:G40),\"-\")","v":277},27,1,6,5,12]
["Q70","NHS England Wessex",0,511,"NA","NA",0,0,0,0,0,0]
["Q71","NHS England London",3,25490,"*","*","*","*","*","*","*","*"]
["Q72","NHS England Yorkshire & Humber",8,15333,1,0,8,0,0,0,0,0]
["Q73","NHS England Lancashire & Greater Manchester",40,21606,0.8,7.4999999999999997E-2,30,2,1,2,1,4]
["Q74","NHS England Cumbria & North East",26,7571,0.92307692307692313,7.6923076923076927E-2,20,4,0,0,2,0]
["Q76","NHS England North Midlands",5,17034,0.8,0,4,0,0,0,0,1]
["Q77","NHS England West Midlands",167,28700,0.94610778443113774,1.7964071856287425E-2,145,13,0,3,0,6]
["Q79","NHS England East",47,25553,0.95744680851063835,2.1276595744680851E-2,38,7,0,1,0,1]
["Q80","NHS England South West",17,28972,0.88235294117647056,0.11764705882352941,14,1,0,0,2,0]
["Q81","NHS England South East",18,25644,1,0,18,0,0,0,0,0]
["Q82","NHS England South Central",3,16299,"*","*","*","*","*","*","*","*"]

{"sheet":"PTS Org","index":4,"n_rows":30,"n_cols":13,"rows_kept":30,"cut":false,"hidden":false,"merged":[[7,6,8,6],[7,7,7,12],[4,1,5,2],[4,5,5,5],[7,0,8,0],[7,1,8,1],[7,2,8,2],[7,3,8,3],[7,4,8,4],[7,5,8,5]]}
[]
[]
[]
[]
[]
[]
[]
["Region (Geo) Code","Org Code","Organisation Name","Total Responses","Total Eligible","Percentage Recommended","Percentage Not  Recommended","Breakdown of Responses"]
[null,null,null,null,null,null,null,"Extremely Likely","Likely","Neither","Unlikely","Extremely Unlikely","Don't Know"]
[null,null,"England (including Independent Sector Providers)",4322,683730,0.91068949560388712,3.1929662193428965E-2,2816,1120,214,68,70,34]
[null,null,"England (excluding Independent Sector Providers)",1843,470837,0.91915355398806298,2.7129679869777535E-2,1275,419,77,22,28,22]
[null,null,"Selection (excluding suppressed data)",{"$f":"IFERROR(SUBTOTAL(9,D13:D40),\"-\")","v":4322},{"$f":"IFERROR(SUBTOTAL(9,E13:E40),\"-\")","v":683730},{"$f":"IFERROR((H12+I12)/SUM(H12:M12),\"-\")","v":0.91078066914498146},{"$f":"IFERROR((K12+L12)/SUM(H12:M12),\"-\")","v":3.1830855018587359E-2},{"$f":"IFERROR(SUBTOTAL(9,H13:H40),\"-\")","v":2802},1118,214,67,70,33]
["Q70","R1F","ISLE OF WIGHT NHS TRUST",8,566,0.875,0,6,1,0,0,0,1]
["Q71","RQM","CHELSEA AND WESTMINSTER HOSPITAL NHS FOUNDATION TRUST",1,433,"*","*","*","*","*","*","*","*"]
["Q71","RJ1","GUY'S AND ST THOMAS' NHS FOUNDATION TRUST",461,24034,0.90021691973969631,2.1691973969631236E-2,197,218,34,5,5,2]
["Q71","RYJ","IMPERIAL COLLEGE HEALTHCARE NHS TRUST",26,27979,0.76923076923076927,0.19230769230769232,12,8,1,0,5,0]
["Q71","RRU","LONDON AMBULANCE SERVICE NHS TRUST",7,4010,1,0,"*","*","*","*","*","*"]
["Q71","RRV","UNIVERSITY COLLEGE LONDON HOSPITALS NHS FOUNDATION TRUST",77,8214,0.8571428571428571,3.896103896103896E-2,52,14,6,1,2,2]
["Q72","RX8","YORKSHIRE AMBULANCE SERVICE NHS TRUST",6,85575,0.83333333333333337,0.16666666666666666,"*","*","*","*","*","*"]
["Q73","RX7","NORTH WEST AMBULANCE SERVICE NHS TRUST",604,81428,0.96357615894039739,1.1589403973509934E-2,527,55,10,2,5,5]
["Q74","RX6","NORTH EAST AMBULANCE SERVICE NHS FOUNDATION TRUST",286,54073,0.8951048951048951,3.8461538461538464E-2,206,50,13,7,4,6]
["Q76","RX9","EAST MIDLANDS AMBULANCE SERVICE NHS TRUST",7,6710,1,0,7,0,0,0,0,0]
["Q77","RYA","WEST MIDLANDS AMBULANCE SERVICE NHS FOUNDATION TRUST",34,47290,0.8529411764705882,5.8823529411764705E-2,21,8,1,1,1,2]
["Q79","RYC","EAST OF ENGLAND AMBULANCE SERVICE NHS TRUST",228,42282,0.94736842105263153,1.3157894736842105E-2,179,37,7,3,0,2]
["Q80","RYF","SOUTH WESTERN AMBULANCE SERVICE NHS FOUNDATION TRUST",8,9123,0.875,0.125,6,1,0,0,1,0]
["Q81","RYD","SOUTH EAST COAST AMBULANCE SERVICE NHS FOUNDATION TRUST",4,35802,"*","*","*","*","*","*","*","*"]
["Q82","RYE","SOUTH CENTRAL AMBULANCE SERVICE NHS FOUNDATION TRUST",86,43318,0.84883720930232553,8.1395348837209308E-2,48,25,5,2,5,1]
["IS1","8J301","ARRIVA TRANSPORT SOLUTIONS LIMITED",1271,83171,0.88512981904012589,4.1699449252557044E-2,702,423,82,31,22,11]
["IS1","AV6","NSL CARE SERVICES HQ",932,108997,0.93991416309012876,2.1459227467811159E-2,625,251,35,10,10,1]
["IS1","ARE","SRCL LTD",276,20725,0.87318840579710144,5.434782608695652E-2,214,27,20,5,10,0]

{"sheet":"SaT Org","index":5,"n_rows":23,"n_cols":13,"rows_kept":23,"cut":false,"hidden":false,"merged":[[7,6,8,6],[7,7,7,12],[4,1,5,2],[4,5,5,5],[7,0,8,0],[7,1,8,1],[7,2,8,2],[7,3,8,3],[7,4,8,4],[7,5,8,5]]}
[]
[]
[]
[]
[]
[]
[]
["Region (Geo) Code","Org Code","Organisation Name","Total Responses","Total Eligible","Percentage Recommended","Percentage Not  Recommended","Breakdown of Responses"]
[null,null,null,null,null,null,null,"Extremely Likely","Likely","Neither","Unlikely","Extremely Unlikely","Don't Know"]
[null,null,"England (including Independent Sector Providers)",334,212713,0.92814371257485029,3.2934131736526949E-2,281,29,1,6,5,12]
[null,null,"England (excluding Independent Sector Providers)",334,212713,0.92814371257485029,3.2934131736526949E-2,281,29,1,6,5,12]
[null,null,"Selection (excluding suppressed data)",{"$f":"IFERROR(SUBTOTAL(9,D13:D40),\"-\")","v":334},{"$f":"IFERROR(SUBTOTAL(9,E13:E40),\"-\")","v":212713},{"$f":"IFERROR((H12+I12)/SUM(H12:M12),\"-\")","v":0.92682926829268297},{"$f":"IFERROR((K12+L12)/SUM(H12:M12),\"-\")","v":3.3536585365853661E-2},{"$f":"IFERROR(SUBTOTAL(9,H13:H40),\"-\")","v":277},27,1,6,5,12]
["Q70","R1F","ISLE OF WIGHT NHS TRUST",0,511,"NA","NA",0,0,0,0,0,0]
["Q71","RRU","LONDON AMBULANCE SERVICE NHS TRUST",3,25490,"*","*","*","*","*","*","*","*"]
["Q72","RX8","YORKSHIRE AMBULANCE SERVICE NHS TRUST",8,15333,1,0,8,0,0,0,0,0]
["Q73","RX7","NORTH WEST AMBULANCE SERVICE NHS TRUST",40,21606,0.8,7.4999999999999997E-2,30,2,1,2,1,4]
["Q74","RX6","NORTH EAST AMBULANCE SERVICE NHS FOUNDATION TRUST",26,7571,0.92307692307692313,7.6923076923076927E-2,20,4,0,0,2,0]
["Q76","RX9","EAST MIDLANDS AMBULANCE SERVICE NHS TRUST",5,17034,0.8,0,4,0,0,0,0,1]
["Q77","RYA","WEST MIDLANDS AMBULANCE SERVICE NHS FOUNDATION TRUST",167,28700,0.94610778443113774,1.7964071856287425E-2,145,13,0,3,0,6]
["Q79","RYC","EAST OF ENGLAND AMBULANCE SERVICE NHS TRUST",47,25553,0.95744680851063835,2.1276595744680851E-2,38,7,0,1,0,1]
["Q80","RYF","SOUTH WESTERN AMBULANCE SERVICE NHS FOUNDATION TRUST",17,28972,0.88235294117647056,0.11764705882352941,14,1,0,0,2,0]
["Q81","RYD","SOUTH EAST COAST AMBULANCE SERVICE NHS FOUNDATION TRUST",18,25644,1,0,18,0,0,0,0,0]
["Q82","RYE","SOUTH CENTRAL AMBULANCE SERVICE NHS FOUNDATION TRUST",3,16299,"*","*","*","*","*","*","*","*"]

{"sheet":"Mode Org","index":6,"n_rows":30,"n_cols":11,"rows_kept":30,"cut":false,"hidden":false,"merged":[[4,1,5,2],[4,4,5,4],[7,0,8,0],[7,1,8,1],[7,2,8,2],[7,3,8,3],[7,4,7,10]]}
[]
[]
[]
[]
[]
[]
[]
["Region (Geo) Code","Org Code","Organisation Name","Combined Total Responses","Breakdown of Responses"]
[null,null,null,null,"SMS/Text/ Smartphone App","Electronic tablet/ kiosk in care or at discharge","Paper/postcard in care or at discharge","Paper survey sent to the patient's home","Telephone survey once patient is home","Online survey once patient is home","Other"]
[null,null,"England (including Independent Sector Providers)",4656,496,285,1828,517,1439,63,28]
[null,null,"England (excluding Independent Sector Providers)",2177,496,285,281,517,507,63,28]
[null,null,"Selection (excluding suppressed data)",{"$f":"IFERROR(SUBTOTAL(9,D13:D37),\"-\")","v":4656},496,282,1823,517,1439,62,28]
["Q70","R1F","ISLE OF WIGHT NHS TRUST",8,"*","*","*","*","*","*","*"]
["Q71","RQM","CHELSEA AND WESTMINSTER HOSPITAL NHS FOUNDATION TRUST",1,"*","*","*","*","*","*","*"]
["Q71","RJ1","GUY'S AND ST THOMAS' NHS FOUNDATION TRUST",461,0,0,0,0,461,0,0]
["Q71","RYJ","IMPERIAL COLLEGE HEALTHCARE NHS TRUST",26,0,0,26,0,0,0,0]
["Q71","RRU","LONDON AMBULANCE SERVICE NHS TRUST",10,0,0,9,0,0,1,0]
["Q71","RRV","UNIVERSITY COLLEGE LONDON HOSPITALS NHS FOUNDATION TRUST",77,0,0,77,0,0,0,0]
["Q72","RX8","YORKSHIRE AMBULANCE SERVICE NHS TRUST",14,0,0,0,6,5,3,0]
["Q73","RX7","NORTH WEST AMBULANCE SERVICE NHS TRUST",644,490,0,17,112,25,0,0]
["Q74","RX6","NORTH EAST AMBULANCE SERVICE NHS FOUNDATION TRUST",312,0,282,0,26,0,4,0]
["Q76","RX9","EAST MIDLANDS AMBULANCE SERVICE NHS TRUST",12,0,0,8,0,0,4,0]
["Q77","RYA","WEST MIDLANDS AMBULANCE SERVICE NHS FOUNDATION TRUST",201,0,0,4,145,0,24,28]
["Q79","RYC","EAST OF ENGLAND AMBULANCE SERVICE NHS TRUST",275,0,0,46,228,0,1,0]
["Q80","RYF","SOUTH WESTERN AMBULANCE SERVICE NHS FOUNDATION TRUST",25,1,0,0,0,9,15,0]
["Q81","RYD","SOUTH EAST COAST AMBULANCE SERVICE NHS FOUNDATION TRUST",22,5,0,0,0,7,10,0]
["Q82","RYE","SOUTH CENTRAL AMBULANCE SERVICE NHS FOUNDATION TRUST",89,0,0,89,0,0,0,0]
["IS1","8J301","ARRIVA TRANSPORT SOLUTIONS LIMITED",1271,0,0,1271,0,0,0,0]
["IS1","AV6","NSL CARE SERVICES HQ",932,0,0,0,0,932,0,0]
["IS1","ARE","SRCL LTD",276,0,0,276,0,0,0,0]

{"sheet":"BS","index":7,"n_rows":19,"n_cols":36,"rows_kept":19,"cut":false,"hidden":true,"merged":[]}
[null,"Sort","Region code","Region Name","Org code","Org Name","Sort range…","Sort range…","Sort range…","Reference Region List:","Code…","Name…","Linked Region List (PTS, SaT, Mode):","Code…","Name…","Code…","Name…","Code…","Name…","Reference Lists (PTS, SaT, Mode):","Code…","Code…","Name…","Code…","Code…","Name…","Code…","Code…","Name…","Org Linked Lists:","Code…","Name…","Code…","Name…","Code…","Name…"]
["PTS Region",1,1,1,"N/A","N/A","Region (Geo) Code","Region (Geo) Code","Region (Geo) Code",null,"IS1","Independent Sector Providers",null,"IS1","Independent Sector Providers","Q70","NHS England Cumbria & North East","IS1","Independent Sector Providers",null,"Q70","R1F","ISLE OF WIGHT NHS TRUST","Q70","R1F","ISLE OF WIGHT NHS TRUST","Q70","R1F","ISLE OF WIGHT NHS TRUST",null,"8J301","ARRIVA TRANSPORT SOLUTIONS LIMITED","R1F","EAST MIDLANDS AMBULANCE SERVICE NHS TRUST","8J301","ARRIVA TRANSPORT SOLUTIONS LIMITED"]
["SaT Region",1,1,1,"N/A","N/A","Region (Geography)","Org Code","Org Code",null,"Q72","NHS England Yorkshire & Humber",null,"Q70","NHS England Cumbria & North East","Q71","NHS England East","Q70","NHS England Cumbria & North East",null,"Q71","RQM","CHELSEA AND WESTMINSTER HOSPITAL NHS FOUNDATION TRUST","Q71","RRU","LONDON AMBULANCE SERVICE NHS TRUST","Q71","RQM","CHELSEA AND WESTMINSTER HOSPITAL NHS FOUNDATION TRUST",null,"ARE","CHELSEA AND WESTMINSTER HOSPITAL NHS FOUNDATION TRUST","RRU","EAST OF ENGLAND AMBULANCE SERVICE NHS TRUST","ARE","CHELSEA AND WESTMINSTER HOSPITAL NHS FOUNDATION TRUST"]
["PTS Org",1,1,1,1,1,"Total Responses","Organisation Name","Organisation Name",null,"Q73","NHS England Lancashire & Greater Manchester",null,"Q71","NHS England East","Q72","NHS England Lancashire & Greater Manchester","Q71","NHS England East",null,"Q71","RJ1","GUY'S AND ST THOMAS' NHS FOUNDATION TRUST","Q72","RX8","YORKSHIRE AMBULANCE SERVICE NHS TRUST","Q71","RJ1","GUY'S AND ST THOMAS' NHS FOUNDATION TRUST",null,"AV6","EAST MIDLANDS AMBULANCE SERVICE NHS TRUST","RX6","ISLE OF WIGHT NHS TRUST","AV6","EAST MIDLANDS AMBULANCE SERVICE NHS TRUST"]
["SaT Org",1,1,1,1,1,"Total Eligible","Total Responses","Combined total responses",null,"Q74","NHS England Cumbria & North East",null,"Q72","NHS England Lancashire & Greater Manchester","Q73","NHS England London","Q72","NHS England Lancashire & Greater Manchester",null,"Q71","RYJ","IMPERIAL COLLEGE HEALTHCARE NHS TRUST","Q73","RX7","NORTH WEST AMBULANCE SERVICE NHS TRUST","Q71","RYJ","IMPERIAL COLLEGE HEALTHCARE NHS TRUST",null,"R1F","EAST OF ENGLAND AMBULANCE SERVICE NHS TRUST","RX7","LONDON AMBULANCE SERVICE NHS TRUST","R1F","EAST OF ENGLAND AMBULANCE SERVICE NHS TRUST"]
["Mode Org",1,1,1,1,1,"Percentage Recommended","Total Eligible","SMS/Text/\nSmartphone app",null,"Q75","NHS England Cheshire & Merseyside",null,"Q73","NHS England London","Q74","NHS England North Midlands","Q73","NHS England London",null,"Q71","RRU","LONDON AMBULANCE SERVICE NHS TRUST","Q74","RX6","NORTH EAST AMBULANCE SERVICE NHS FOUNDATION TRUST","Q71","RRU","LONDON AMBULANCE SERVICE NHS TRUST",null,"RJ1","GUY'S AND ST THOMAS' NHS FOUNDATION TRUST","RX8","NORTH EAST AMBULANCE SERVICE NHS FOUNDATION TRUST","RJ1","GUY'S AND ST THOMAS' NHS FOUNDATION TRUST"]
[null,null,null,null,null,null,"Percentage Not Recommended","Percentage Recommended","Electronic tablet",null,"Q76","NHS England North Midlands",null,"Q74","NHS England North Midlands","Q76","NHS England South Central","Q74","NHS England North Midlands",null,"Q71","RRV","UNIVERSITY COLLEGE LONDON HOSPITALS NHS FOUNDATION TRUST","Q76","RX9","EAST MIDLANDS AMBULANCE SERVICE NHS TRUST","Q71","RRV","UNIVERSITY COLLEGE LONDON HOSPITALS NHS FOUNDATION TRUST",null,"RQM","IMPERIAL COLLEGE HEALTHCARE NHS TRUST","RX9","NORTH WEST AMBULANCE SERVICE NHS TRUST","RQM","IMPERIAL COLLEGE HEALTHCARE NHS TRUST"]
[null,null,null,null,null,null,"Extremely Likely","Percentage Not Recommended","Paper/Postcard in care/at discharge",null,"Q77","NHS England West Midlands",null,"Q76","NHS England South Central","Q77","NHS England South East","Q76","NHS England South Central",null,"Q72","RX8","YORKSHIRE AMBULANCE SERVICE NHS TRUST","Q77","RYA","WEST MIDLANDS AMBULANCE SERVICE NHS FOUNDATION TRUST","Q72","RX8","YORKSHIRE AMBULANCE SERVICE NHS TRUST",null,"RRU","ISLE OF WIGHT NHS TRUST","RYA","SOUTH CENTRAL AMBULANCE SERVICE NHS FOUNDATION TRUST","RRU","ISLE OF WIGHT NHS TRUST"]
[null,null,null,null,null,null,"Likely","Extremely Likely","Paper survey sent to home ",null,"Q78","NHS England Central Midlands",null,"Q77","NHS England South East","Q79","NHS England South West","Q77","NHS England South East",null,"Q73","RX7","NORTH WEST AMBULANCE SERVICE NHS TRUST","Q79","RYC","EAST OF ENGLAND AMBULANCE SERVICE NHS TRUST","Q73","RX7","NORTH WEST AMBULANCE SERVICE NHS TRUST",null,"RRV","LONDON AMBULANCE SERVICE NHS TRUST","RYC","SOUTH EAST COAST AMBULANCE SERVICE NHS FOUNDATION TRUST","RRV","LONDON AMBULANCE SERVICE NHS TRUST"]
[null,null,null,null,null,null,"Neither","Likely","Telephone survey",null,"Q79","NHS England East",null,"Q79","NHS England South West","Q80","NHS England Wessex","Q79","NHS England South West",null,"Q74","RX6","NORTH EAST AMBULANCE SERVICE NHS FOUNDATION TRUST","Q80","RYF","SOUTH WESTERN AMBULANCE SERVICE NHS FOUNDATION TRUST","Q74","RX6","NORTH EAST AMBULANCE SERVICE NHS FOUNDATION TRUST",null,"RX6","NORTH EAST AMBULANCE SERVICE NHS FOUNDATION TRUST","RYD","SOUTH WESTERN AMBULANCE SERVICE NHS FOUNDATION TRUST","RX6","NORTH EAST AMBULANCE SERVICE NHS FOUNDATION TRUST"]
[null,null,null,null,null,null,"Unlikely","Neither","Online survey",null,"Q80","NHS England South West",null,"Q80","NHS England Wessex","Q81","NHS England West Midlands","Q80","NHS England Wessex",null,"Q76","RX9","EAST MIDLANDS AMBULANCE SERVICE NHS TRUST","Q81","RYD","SOUTH EAST COAST AMBULANCE SERVICE NHS FOUNDATION TRUST","Q76","RX9","EAST MIDLANDS AMBULANCE SERVICE NHS TRUST",null,"RX7","NORTH WEST AMBULANCE SERVICE NHS TRUST","RYE","WEST MIDLANDS AMBULANCE SERVICE NHS FOUNDATION TRUST","RX7","NORTH WEST AMBULANCE SERVICE NHS TRUST"]
[null,null,null,null,null,null,"Extremely Unlikely","Unlikely","Other",null,"Q81","NHS England South East",null,"Q81","NHS England West Midlands","Q82","NHS England Yorkshire & Humber","Q81","NHS England West Midlands",null,"Q77","RYA","WEST MIDLANDS AMBULANCE SERVICE NHS FOUNDATION TRUST","Q82","RYE","SOUTH CENTRAL AMBULANCE SERVICE NHS FOUNDATION TRUST","Q77","RYA","WEST MIDLANDS AMBULANCE SERVICE NHS FOUNDATION TRUST",null,"RX8","NSL CARE SERVICES HQ","RYF","YORKSHIRE AMBULANCE SERVICE NHS TRUST","RX8","NSL CARE SERVICES HQ"]
[null,null,null,null,null,null,"Don't Know","Extremely Unlikely",null,null,"Q82","NHS England South Central",null,"Q82","NHS England Yorkshire & Humber",null,null,"Q82","NHS England Yorkshire & Humber",null,"Q79","RYC","EAST OF ENGLAND AMBULANCE SERVICE NHS TRUST",null,null,null,"Q79","RYC","EAST OF ENGLAND AMBULANCE SERVICE NHS TRUST",null,"RX9","SOUTH CENTRAL AMBULANCE SERVICE NHS FOUNDATION TRUST",null,null,"RX9","SOUTH CENTRAL AMBULANCE SERVICE NHS FOUNDATION TRUST"]
[null,null,null,null,null,null,null,"Don't Know",null,null,"Q70","NHS England Wessex",null,null,null,null,null,null,null,null,"Q80","RYF","SOUTH WESTERN AMBULANCE SERVICE NHS FOUNDATION TRUST",null,null,null,"Q80","RYF","SOUTH WESTERN AMBULANCE SERVICE NHS FOUNDATION TRUST",null,"RYA","SOUTH EAST COAST AMBULANCE SERVICE NHS FOUNDATION TRUST",null,null,"RYA","SOUTH EAST COAST AMBULANCE SERVICE NHS FOUNDATION TRUST"]
[null,null,null,null,null,null,null,null,null,null,"Q71","NHS England London",null,null,null,null,null,null,null,null,"Q81","RYD","SOUTH EAST COAST AMBULANCE SERVICE NHS FOUNDATION TRUST",null,null,null,"Q81","RYD","SOUTH EAST COAST AMBULANCE SERVICE NHS FOUNDATION TRUST",null,"RYC","SOUTH WESTERN AMBULANCE SERVICE NHS FOUNDATION TRUST",null,null,"RYC","SOUTH WESTERN AMBULANCE SERVICE NHS FOUNDATION TRUST"]
[null,null,null,null,null,null,null,null,null,null,null,null,null,null,null,null,null,null,null,null,"Q82","RYE","SOUTH CENTRAL AMBULANCE SERVICE NHS FOUNDATION TRUST",null,null,null,"Q82","RYE","SOUTH CENTRAL AMBULANCE SERVICE NHS FOUNDATION TRUST",null,"RYD","SRCL LTD",null,null,"RYD","SRCL LTD"]
[null,null,null,null,null,null,null,null,null,null,null,null,null,null,null,null,null,null,null,null,"IS1","8J301","ARRIVA TRANSPORT SOLUTIONS LIMITED",null,null,null,"IS1","8J301","ARRIVA TRANSPORT SOLUTIONS LIMITED",null,"RYE","UNIVERSITY COLLEGE LONDON HOSPITALS NHS FOUNDATION TRUST",null,null,"RYE","UNIVERSITY COLLEGE LONDON HOSPITALS NHS FOUNDATION TRUST"]
[null,null,null,null,null,null,null,null,null,null,null,null,null,null,null,null,null,null,null,null,"IS1","AV6","NSL CARE SERVICES HQ",null,null,null,"IS1","AV6","NSL CARE SERVICES HQ",null,"RYF","WEST MIDLANDS AMBULANCE SERVICE NHS FOUNDATION TRUST",null,null,"RYF","WEST MIDLANDS AMBULANCE SERVICE NHS FOUNDATION TRUST"]
[null,null,null,null,null,null,null,null,null,null,null,null,null,null,null,null,null,null,null,null,"IS1","ARE","SRCL LTD",null,null,null,"IS1","ARE","SRCL LTD",null,"RYJ","YORKSHIRE AMBULANCE SERVICE NHS TRUST",null,null,"RYJ","YORKSHIRE AMBULANCE SERVICE NHS TRUST"]